{"text_format":"1","workbook":"xlsx","n_sheets":9,"sheets":["Foglio1","Foglio2","Foglio3","Foglio4","Foglio5","Foglio5bis","Foglio6","Foglio7","Legenda"],"not_rendered":{"charts":0,"images":0,"macros":1,"external_links":1,"defined_names":1,"comments":0,"pivot_tables":0},"unopened":[],"bounds":{"document_bytes":16777216,"sheet_cells":100000,"rows_first":2000,"rows_last":500,"rows_between":2000,"halvings":0,"cell_chars":16384,"cell_head_chars":4096},"cells_cut":0,"cells_raw":0,"read":"whole","date_system":"1900"}

{"sheet":"Foglio1","index":0,"n_rows":44,"n_cols":14,"rows_kept":44,"cut":false,"hidden":false,"merged":[[24,11,24,13],[25,11,25,13],[26,11,26,13],[27,11,27,13],[16,7,16,13],[22,11,22,13],[23,11,23,13],[17,11,17,13],[18,11,18,13],[19,11,19,13],[20,11,20,13],[21,11,21,13],[40,6,40,7],[40,9,40,10],[44,2,44,4],[38,6,38,7],[38,9,38,10],[39,6,39,7],[39,9,39,10],[44,6,44,12],[36,8,36,9],[36,11,36,12],[30,0,30,2],[35,11,35,12],[35,8,35,9],[30,4,31,4],[30,3,31,3],[30,5,31,13],[0,0,9,13],[13,0,13,3],[14,0,14,3],[11,4,11,6],[12,4,12,6],[13,4,13,9],[14,4,14,9],[12,8,12,9],[11,0,11,3],[12,0,12,3]]}
["INTESTAZIONE/LOGO DITTA"]
[]
[]
[]
[]
[]
[]
[]
[]
[]
[]
["Luogo"]
["Prot. :",null,null,null,null,null,null,"data:"]
["Seguito:"]
["Rif.:"]
[]
[null,null,null,null,null,null,null,"A: Ministero degli Affari Esteri e della Cooperazione Internazionale"]
[null,null,null,null,null,null,null,null,null,null,null,"Autorità nazionale - U.A.M.A."]
[null,null,null,null,null,null,null,null,null,null,null,"Divisione Trattative Contrattuali"]
[null,null,null,null,null,null,null,null,null,null,null,"Piazzale della Farnesina, 1"]
[null,null,null,null,null,null,null,null,null,null,null,"00194 - ROMA"]
[null,null,null,null,null,null,null,null,null,null,null,"uama.mae@cert.esteri.it"]
[null,null,null,null,null,null,null,null,null,null,null,"uama.trattative@esteri.it"]
[null,null,null,null,null,null,null,null,null,null,null,"Ministero della Difesa"]
[null,null,null,null,null,null,null,null,null,null,null,"Stato Maggiore della Difesa"]
[null,null,null,null,null,null,null,null,null,null,null,"II Reparto - RIS - M.A.T."]
[null,null,null,null,null,null,null,null,null,null,null,"Via Lepanto, 5 - 00192 ROMA"]
[null,null,null,null,null,null,null,null,null,null,null,"stamadifesa@postacert.difesa.it"]
["e, per conoscenza (vedasi indirizzi Enti in allegato)"]
[]
["OGGETTO:",null,null,{"$f":"IF(Foglio4!I11=\"\",\"\",Foglio4!I11)","v":""},{"$f":"IF(Foglio4!I26=\"\",\"\",(CONCATENATE(\"(TRAMITE \",Foglio4!I26,\")\")))","v":""},{"$f":"INDEX(Legenda!B6:'Legenda'!B14,Legenda!C76)","v":"Legge 185/90 e succ. mod. - Comunicazione di inizio Trattative Contrattuali - 9.5"}]
[]
[]
[null,null,"Articolo 9 comma 2"]
[null,null,"Articolo 9 comma 4"]
[null,null,"Articolo 9 comma 5 ",null,null,"(Autorizzazione di riferimento nr.",null,null,null,null,"del",null,null,"allegata dove previsto)"]
[null,null,"Articolo2 comma 6 ",null,null,"(Autorizzazione di riferimento nr.",null,null,null,null,"del",null,null,"allegata)"]
[null,null,"Intermediazione"]
[null,null,"Variazione della TTCC",null,null,"prot. n.",null,null,"del"]
[null,null,"Precisazione della TTCC",null,null,"prot. n.",null,null,"del"]
[null,null,"Rinnovo della TTCC",null,null,"prot. n.",null,null,"del"]
[null,null,"Cessione delle informazioni e materiale classificato (ambito Unione europea)"]
[]
[null,"Tipo di operazione oggetto della richiesta"]

{"sheet":"Foglio2","index":1,"n_rows":54,"n_cols":12,"rows_kept":54,"cut":false,"hidden":false,"merged":[[3,0,3,1],[3,2,3,5],[45,9,48,11],[45,1,48,4],[19,1,19,2],[23,1,23,2],[17,6,17,11],[25,3,25,4],[19,4,19,11],[21,4,21,6],[21,8,21,11],[23,4,23,11],[10,1,10,4],[10,5,10,8],[10,11,10,12],[36,10,36,11],[9,2,9,10],[28,1,28,12],[42,6,42,11],[51,7,51,11],[49,9,49,11],[40,6,40,11],[38,6,38,7],[38,10,38,11],[36,6,36,7],[11,1,11,3],[11,4,11,12],[12,1,12,12],[21,1,21,2],[13,1,13,12]]}
[]
[]
[]
[" Protocollo",null,{"$f":"IF(Foglio1!E13=\"\",\"\",Foglio1!E13)","v":""},null,null,null,null,null,null,{"$f":"IF(Foglio1!H13=\"\",\"\",Foglio1!H13)","v":"data:"},{"$f":"IF(Foglio1!I13=\"\",\"\",Foglio1!I13)","v":""}]
[]
[]
[]
[]
[]
[null,null,"Questa Società, iscritta al Registro Nazionale delle Imprese con estremi  ",null,null,null,null,null,null,null,null,"N.00000"]
[null,"in possesso di abilitazione n.",null,null,null,"0.0000000.0000",null,null,null,"in data","1970-01-01","fino al livello di"]
[null,"SEGRETISSIMO",null,null," concessa dall'Autorità nazionale per la Sicurezza, in corso di validità, chiede di essere"]
[null,"autorizzata a trattare ovvero comunica di aver iniziato trattative contrattuali a livello di classifica corrispondente a "]
[null,"quello oggetto della trattativa con:"]
[]
[null,"CONTRAENTE:"]
[]
[null,null,"Paese",null,{"$f":"IFERROR(VLOOKUP(G18,Legenda!I18:'Legenda'!J204,2,1),\"\")","v":""}]
[null,"Ragione sociale/Denominazione"]
[null,"(CONTRAENTE)"]
[]
[null,"Città",null,null,null,null,null,"CAP"]
[]
[null,"Indirizzo"]
[]
[null,null,null,"MOD/Ente Governativo",null,null,"Società privata autorizzata",null,null,"Società Governativa"]
[]
[null,"INDICARE UNA SOLA OPZIONE"]
[null,"IN QUESTO RIQUADRO VA INDICATA LA SOCIETA'/ENTE CON CUI SI STIPULA UL CONTRATTO/ORDINE"]
[]
[null,"del Paese destinatario/di provenienza della fornitura per l'eventuale movimentazione del materiale "]
[null,"elencato nel foglio in Allegato 1."]
[]
[null,"Per la parte di specifico interesse di codesti Dicasteri si invia in Allegato 2 il modulo compilato "]
[null,"in ogni sua voce contenete informazioni generali sulla pratica."]
[]
[null,"Referente",null,null,"Cognome",null,null,null,null,"Nome"]
[]
[null,"Numero di telefono",null,null,null,null,null,null,null,"cellulare"]
[]
[null,"Email del referente (non PEC)"]
[]
[null,"Email  PEC della società"]
[null,"PER EVENTUALI COMUNICAZIONI UFFICIALI"]
[]
[]
[]
[]
[]
[]
[]
[null,null,null,null,null,null,null,"Timbro,data e firma del legale Rappresentante"]
[]
[null,null,null,null,null,null,null,{"$f":"CONCATENATE(\"Pagina n° \",_xlfn.SHEET(),\" di pag. n°\",(_xlfn.SHEETS()-2))","v":"Pagina n° 2 di pag. n°7"}]

{"sheet":"Foglio3","index":2,"n_rows":47,"n_cols":8,"rows_kept":47,"cut":false,"hidden":false,"merged":[[16,1,16,2],[17,1,17,5],[12,1,12,2],[13,1,13,6],[14,1,14,2],[15,1,15,5],[11,1,11,8],[3,0,3,1],[3,2,3,3],[8,2,8,6],[19,1,19,3],[20,1,20,2],[38,1,41,2],[18,1,18,2],[38,7,41,9]]}
[]
[]
[]
[" Protocollo",null,{"$f":"IF(Foglio1!E13=\"\",\"\",Foglio1!E13)","v":""},null,null,null,"data",{"$f":"IF(Foglio1!I13=\"\",\"\",Foglio1!I13)","v":""}]
[]
[]
[]
[]
[null,null,"ELENCO INDIRIZZI ALLEGATO"]
[]
[]
[null,"Ministero della Difesa - Segretariato Generale della Difesa e Direzione Nazionale degli Armamenti  - II Reparto"]
[null,"sgd@postacert.difesa.it"]
[null,"Stato Maggiore dell'Esercito - IV Reparto"]
[null,"statesercito@postacert.difesa.it"]
[null,"Stato Maggiore della Marina - III Reparto"]
[null,"maristat@postacert.difesa.it"]
[null,"Stato Maggiore dell'Aeronautica - IV Reparto"]
[null,"stataereo@postacert.difesa.it"]
[null,"Agenzia Informazioni e Sicurezza Esterna - AISE"]
[null,"ttct@sutor.it"]
[]
[]
[]
[]
[]
[]
[]
[]
[]
[]
[]
[]
[]
[]
[]
[]
[]
[null,{"$f":"IF(Foglio2!B46=\"\",\"\",Foglio2!B46)","v":""},null,null,null,null,null,{"$f":"IF(Foglio2!J46=\"\",\"\",Foglio2!J46)","v":""}]
[null,null,null,null,null,null,{"$f":"IF(Foglio2!K62=\"\",\"\",Foglio2!K62)","v":""}]
[null,null,null,null,null,null,{"$f":"IF(Foglio2!K63=\"\",\"\",Foglio2!K63)","v":""}]
[null,null,null,null,null,null,{"$f":"IF(Foglio2!K64=\"\",\"\",Foglio2!K64)","v":""}]
[null,null,null,null,null,null,{"$f":"IF(Foglio2!H50=\"\",\"\",Foglio2!H50)","v":""}]
[]
[null,null,null,null,null,null,"Timbro,data e firma del legale Rappresentante"]
[]
[null,null,null,{"$f":"CONCATENATE(\"Pagina n° \",_xlfn.SHEET(),\" di pag. n°\",(_xlfn.SHEETS()-2))","v":"Pagina n° 3 di pag. n°7"}]

{"sheet":"Foglio4","index":3,"n_rows":59,"n_cols":13,"rows_kept":59,"cut":false,"hidden":false,"merged":[[27,8,28,12],[1,0,1,3],[55,0,55,3],[55,4,55,6],[51,1,54,5],[3,0,3,12],[4,0,4,12],[6,0,6,12],[1,4,1,7],[15,7,15,9],[12,7,12,12],[17,7,17,12],[25,8,25,11],[40,8,40,11],[10,8,10,11],[51,10,54,12],[46,8,46,12],[44,8,44,10],[42,8,42,11],[30,7,30,10],[32,7,33,12]]}
[]
[" Protocollo",null,null,null,{"$f":"IF(Foglio1!E13=\"\",\"\",Foglio1!E13)","v":""},null,null,null,null,null,null,"data",{"$f":"IF(Foglio1!I13=\"\",\"\",Foglio1!I13)","v":""}]
[]
["ELEMENTI PRINCIPALI / ELENCO MATERIALI"]
["Allegato 1"]
[]
["Soggetti dell'operazione"]
[]
[null,"DESTINATARIO/MITTENTE:"]
[]
[null,null,null,null,null,"Paese",{"$f":"IFERROR(VLOOKUP(I11,Legenda!I18:'Legenda'!J204,2,1),\"\")","v":""}]
[]
[null,null,"Ragione sociale/Denominazione"]
[]
[]
[null,null,null,null,null,"Città",null,null,null,null,null,"CAP"]
[]
[null,null,null,null,null,"Indirizzo"]
[]
[]
[null,null,null,"MOD/Ente governativo",null,null,null,"Società privata autorizzata",null,null,null,"Società governativa"]
[]
[]
[null,"TRAMITE:"]
[]
[null,null,null,null,null,"Paese",{"$f":"IFERROR(VLOOKUP(I26,Legenda!I18:'Legenda'!J204,2,1),\"\")","v":""}]
[]
[null,null,"Ragione sociale/Denominazione"]
[]
[]
[null,null,null,"Commerciale",null,"Città",null,null,null,null,null,"CAP"]
[]
[null,null,null,"Industrale",null,"Indirizzo"]
[]
[]
[null,null,null,"MOD/Ente governativo",null,null,null,"Società privata autorizzata",null,null,null,"Società governativa"]
[]
[]
[null,"UTILIZZATORE FINALE:"]
[]
[null,null,null,null,null,"Paese",{"$f":"IFERROR(VLOOKUP(I41,Legenda!I18:'Legenda'!J204,2,1),\"\")","v":""}]
[]
[null,"Ragione sociale/Denominazione"]
[]
[null,null,null,null,null,"Città",null,null,null,null,null,"CAP"]
[null,null,null,null,null,"Indirizzo"]
[]
[]
[null,null,null,"MOD/Ente governativo",null,null,null,"Società privata autorizzata",null,null,null,"Società governativa"]
[]
[]
[null,{"$f":"IF(Foglio2!B46=\"\",\"\",Foglio2!B46)","v":""},null,null,null,null,null,null,null,null,{"$f":"IF(Foglio2!J46=\"\",\"\",Foglio2!J46)","v":""}]
[]
[]
[]
[null,null,null,null,null,null,null,null,null,{"$f":"IF(Foglio2!H50=\"\",\"\",Foglio2!H50)","v":""}]
[null,null,null,null,null,null,null,null,null,"Timbro,data e firma del legale Rappresentante"]
[]
[null,null,null,null,null,null,null,null,{"$f":"CONCATENATE(\"Pagina n° \",_xlfn.SHEET(),\" di pag. n°\",(_xlfn.SHEETS()-2))","v":"Pagina n° 4 di pag. n°7"}]

{"sheet":"Foglio5","index":4,"n_rows":54,"n_cols":26,"rows_kept":54,"cut":false,"hidden":false,"merged":[[1,0,1,2],[1,3,1,10],[1,19,1,20],[1,21,1,25],[2,1,2,25],[4,2,4,5],[4,6,4,25],[7,24,7,25],[8,1,8,2],[10,2,10,5],[10,6,10,25],[11,1,12,1],[11,2,12,5],[11,6,11,25],[12,6,12,25],[5,1,6,1],[5,2,6,5],[5,6,5,25],[6,6,6,25],[7,1,7,2],[7,3,7,4],[7,5,7,6],[7,7,7,8],[7,9,7,13],[7,16,7,23],[13,24,13,25],[14,1,14,2],[16,2,16,5],[16,6,16,25],[17,1,18,1],[17,2,18,5],[17,6,17,25],[18,6,18,25],[13,1,13,2],[13,3,13,4],[13,5,13,6],[13,7,13,8],[13,9,13,13],[13,16,13,23],[19,24,19,25],[20,1,20,2],[22,2,22,5],[22,6,22,25],[23,1,24,1],[23,2,24,5],[23,6,23,25],[24,6,24,25],[19,1,19,2],[19,3,19,4],[19,5,19,6],[19,7,19,8],[19,9,19,13],[19,16,19,23],[25,24,25,25],[26,1,26,2],[28,2,28,5],[28,6,28,25],[29,1,30,1],[29,2,30,5],[29,6,29,25],[30,6,30,25],[25,1,25,2],[25,3,25,4],[25,5,25,6],[25,7,25,8],[25,9,25,13],[25,16,25,23],[31,24,31,25],[32,1,32,2],[34,2,34,5],[34,6,34,25],[35,1,36,1],[35,2,36,5],[35,6,35,25],[36,6,36,25],[31,1,31,2],[31,3,31,4],[31,5,31,6],[31,7,31,8],[31,9,31,13],[31,16,31,23],[37,24,37,25],[38,1,38,2],[40,2,40,5],[40,6,40,25],[41,1,42,1],[41,2,42,5],[41,6,41,25],[42,6,42,25],[37,1,37,2],[37,3,37,4],[37,5,37,6],[37,7,37,8],[37,9,37,13],[37,16,37,23],[43,24,43,25],[44,1,44,2],[46,1,49,7],[46,15,49,22],[49,13,49,14],[50,1,50,2],[50,3,50,10],[50,13,50,14],[43,1,43,2],[43,3,43,4],[43,5,43,6],[43,7,43,8],[43,9,43,13],[43,16,43,23]]}
[]
[" Protocollo",null,null,{"$f":"IF(Foglio1!E13=\"\",\"\",Foglio1!E13)","v":""},null,null,null,null,null,null,null,null,null,null,null,null,null,null,null,"Data",null,{"$f":"IF(Foglio1!I13=\"\",\"\",Foglio1!I13)","v":""}]
[null,"Materiali"]
[]
[null,{"$f":"(7*(_xlfn.SHEET()-5)+1)","v":1},"tipo materiale",null,null,null,"denominazione materiale"]
[]
[]
[null,"Classifica",null,"Cat.",null,"Gr.",null,"Sot.",null,"codice RNI",null,null,null,null,"q.tà","U.M.","voce doganale",null,null,null,null,null,null,null,"TARIC"]
[null,null,null,{"$f":"INDEX('[1]Lista Materiali'!$A$6:G39994,MATCH(1,('[1]Lista Materiali'!$A$6:'[1]Lista Materiali'!$A$40000=G6)*('[1]Lista Materiali'!$B$6:'[1]Lista Materiali'!$B$40000=(RIGHT(B9,2)))*('[1]Lista Materiali'!$C$6:'[1]Lista Materiali'!$C$40000=(LEFT(C6,1))),0),4)","v":{"$error":"#REF!"}},null,{"$f":"INDEX('[1]Lista Materiali'!$A$6:G39994,MATCH(1,('[1]Lista Materiali'!$A$6:'[1]Lista Materiali'!$A$40000=G6)*('[1]Lista Materiali'!$B$6:'[1]Lista Materiali'!$B$40000=(RIGHT(B9,2)))*('[1]Lista Materiali'!$C$6:'[1]Lista Materiali'!$C$40000=(LEFT(C6,1))),0),5)","v":{"$error":"#REF!"}},null,{"$f":"INDEX('[1]Lista Materiali'!$A$6:G39994,MATCH(1,('[1]Lista Materiali'!$A$6:'[1]Lista Materiali'!$A$40000=G6)*('[1]Lista Materiali'!$B$6:'[1]Lista Materiali'!$B$40000=(RIGHT(B9,2)))*('[1]Lista Materiali'!$C$6:'[1]Lista Materiali'!$C$40000=(LEFT(C6,1))),0),6)","v":{"$error":"#REF!"}},null,null,null,{"$f":"INDEX('[1]Lista Materiali'!$A$6:G39994,MATCH(1,('[1]Lista Materiali'!$A$6:'[1]Lista Materiali'!$A$40000=G6)*('[1]Lista Materiali'!$B$6:'[1]Lista Materiali'!$B$40000=(RIGHT(B9,2)))*('[1]Lista Materiali'!$C$6:'[1]Lista Materiali'!$C$40000=(LEFT(C6,1))),0),7)","v":{"$error":"#REF!"}},null,null,null,null,1,2,3,4,5,6,7,8,9,0]
[]
[null,{"$f":"(7*(_xlfn.SHEET()-5)+2)","v":2},"tipo materiale",null,null,null,"denominazione materiale"]
[]
[]
[null,"Classifica",null,"Cat.",null,"Gr.",null,"Sot.",null,"codice RNI",null,null,null,null,"q.tà","U.M.","voce doganale",null,null,null,null,null,null,null,"TARIC"]
[null,null,null,{"$f":"INDEX('[1]Lista Materiali'!$A$6:G40000,MATCH(1,('[1]Lista Materiali'!$A$6:'[1]Lista Materiali'!$A$40000=G12)*('[1]Lista Materiali'!$B$6:'[1]Lista Materiali'!$B$40000=(RIGHT(B15,2)))*('[1]Lista Materiali'!$C$6:'[1]Lista Materiali'!$C$40000=(LEFT(C12,1))),0),4)","v":{"$error":"#REF!"}},null,{"$f":"INDEX('[1]Lista Materiali'!$A$6:G40000,MATCH(1,('[1]Lista Materiali'!$A$6:'[1]Lista Materiali'!$A$40000=G12)*('[1]Lista Materiali'!$B$6:'[1]Lista Materiali'!$B$40000=(RIGHT(B15,2)))*('[1]Lista Materiali'!$C$6:'[1]Lista Materiali'!$C$40000=(LEFT(C12,1))),0),5)","v":{"$error":"#REF!"}},null,{"$f":"INDEX('[1]Lista Materiali'!$A$6:G40000,MATCH(1,('[1]Lista Materiali'!$A$6:'[1]Lista Materiali'!$A$40000=G12)*('[1]Lista Materiali'!$B$6:'[1]Lista Materiali'!$B$40000=(RIGHT(B15,2)))*('[1]Lista Materiali'!$C$6:'[1]Lista Materiali'!$C$40000=(LEFT(C12,1))),0),6)","v":{"$error":"#REF!"}},null,null,null,{"$f":"INDEX('[1]Lista Materiali'!$A$6:G40000,MATCH(1,('[1]Lista Materiali'!$A$6:'[1]Lista Materiali'!$A$40000=G12)*('[1]Lista Materiali'!$B$6:'[1]Lista Materiali'!$B$40000=(RIGHT(B15,2)))*('[1]Lista Materiali'!$C$6:'[1]Lista Materiali'!$C$40000=(LEFT(C12,1))),0),7)","v":{"$error":"#REF!"}}]
[]
[null,{"$f":"(7*(_xlfn.SHEET()-5)+3)","v":3},"tipo materiale",null,null,null,"denominazione materiale"]
[]
[]
[null,"Classifica",null,"Cat.",null,"Gr.",null,"Sot.",null,"codice RNI",null,null,null,null,"q.tà","U.M.","voce doganale",null,null,null,null,null,null,null,"TARIC"]
[null,null,null,{"$f":"INDEX('[1]Lista Materiali'!$A$6:G40006,MATCH(1,('[1]Lista Materiali'!$A$6:'[1]Lista Materiali'!$A$40000=G18)*('[1]Lista Materiali'!$B$6:'[1]Lista Materiali'!$B$40000=(RIGHT(B21,2)))*('[1]Lista Materiali'!$C$6:'[1]Lista Materiali'!$C$40000=(LEFT(C18,1))),0),4)","v":{"$error":"#REF!"}},null,{"$f":"INDEX('[1]Lista Materiali'!$A$6:G40006,MATCH(1,('[1]Lista Materiali'!$A$6:'[1]Lista Materiali'!$A$40000=G18)*('[1]Lista Materiali'!$B$6:'[1]Lista Materiali'!$B$40000=(RIGHT(B21,2)))*('[1]Lista Materiali'!$C$6:'[1]Lista Materiali'!$C$40000=(LEFT(C18,1))),0),5)","v":{"$error":"#REF!"}},null,{"$f":"INDEX('[1]Lista Materiali'!$A$6:G40006,MATCH(1,('[1]Lista Materiali'!$A$6:'[1]Lista Materiali'!$A$40000=G18)*('[1]Lista Materiali'!$B$6:'[1]Lista Materiali'!$B$40000=(RIGHT(B21,2)))*('[1]Lista Materiali'!$C$6:'[1]Lista Materiali'!$C$40000=(LEFT(C18,1))),0),6)","v":{"$error":"#REF!"}},null,null,null,{"$f":"INDEX('[1]Lista Materiali'!$A$6:G40006,MATCH(1,('[1]Lista Materiali'!$A$6:'[1]Lista Materiali'!$A$40000=G18)*('[1]Lista Materiali'!$B$6:'[1]Lista Materiali'!$B$40000=(RIGHT(B21,2)))*('[1]Lista Materiali'!$C$6:'[1]Lista Materiali'!$C$40000=(LEFT(C18,1))),0),7)","v":{"$error":"#REF!"}}]
[]
[null,{"$f":"(7*(_xlfn.SHEET()-5)+4)","v":4},"tipo materiale",null,null,null,"denominazione materiale"]
[]
[]
[null,"Classifica",null,"Cat.",null,"Gr.",null,"Sot.",null,"codice RNI",null,null,null,null,"q.tà","U.M.","voce doganale",null,null,null,null,null,null,null,"TARIC"]
[null,null,null,{"$f":"INDEX('[1]Lista Materiali'!$A$6:G40012,MATCH(1,('[1]Lista Materiali'!$A$6:'[1]Lista Materiali'!$A$40000=G24)*('[1]Lista Materiali'!$B$6:'[1]Lista Materiali'!$B$40000=(RIGHT(B27,2)))*('[1]Lista Materiali'!$C$6:'[1]Lista Materiali'!$C$40000=(LEFT(C24,1))),0),4)","v":{"$error":"#REF!"}},null,{"$f":"INDEX('[1]Lista Materiali'!$A$6:G40012,MATCH(1,('[1]Lista Materiali'!$A$6:'[1]Lista Materiali'!$A$40000=G24)*('[1]Lista Materiali'!$B$6:'[1]Lista Materiali'!$B$40000=(RIGHT(B27,2)))*('[1]Lista Materiali'!$C$6:'[1]Lista Materiali'!$C$40000=(LEFT(C24,1))),0),5)","v":{"$error":"#REF!"}},null,{"$f":"INDEX('[1]Lista Materiali'!$A$6:G40012,MATCH(1,('[1]Lista Materiali'!$A$6:'[1]Lista Materiali'!$A$40000=G24)*('[1]Lista Materiali'!$B$6:'[1]Lista Materiali'!$B$40000=(RIGHT(B27,2)))*('[1]Lista Materiali'!$C$6:'[1]Lista Materiali'!$C$40000=(LEFT(C24,1))),0),6)","v":{"$error":"#REF!"}},null,null,null,{"$f":"INDEX('[1]Lista Materiali'!$A$6:G40012,MATCH(1,('[1]Lista Materiali'!$A$6:'[1]Lista Materiali'!$A$40000=G24)*('[1]Lista Materiali'!$B$6:'[1]Lista Materiali'!$B$40000=(RIGHT(B27,2)))*('[1]Lista Materiali'!$C$6:'[1]Lista Materiali'!$C$40000=(LEFT(C24,1))),0),7)","v":{"$error":"#REF!"}}]
[]
[null,{"$f":"(7*(_xlfn.SHEET()-5)+5)","v":5},"tipo materiale",null,null,null,"denominazione materiale"]
[]
[]
[null,"Classifica",null,"Cat.",null,"Gr.",null,"Sot.",null,"codice RNI",null,null,null,null,"q.tà","U.M.","voce doganale",null,null,null,null,null,null,null,"TARIC"]
[null,null,null,{"$f":"INDEX('[1]Lista Materiali'!$A$6:G40018,MATCH(1,('[1]Lista Materiali'!$A$6:'[1]Lista Materiali'!$A$40000=G30)*('[1]Lista Materiali'!$B$6:'[1]Lista Materiali'!$B$40000=(RIGHT(B33,2)))*('[1]Lista Materiali'!$C$6:'[1]Lista Materiali'!$C$40000=(LEFT(C30,1))),0),4)","v":{"$error":"#REF!"}},null,{"$f":"INDEX('[1]Lista Materiali'!$A$6:G40018,MATCH(1,('[1]Lista Materiali'!$A$6:'[1]Lista Materiali'!$A$40000=G30)*('[1]Lista Materiali'!$B$6:'[1]Lista Materiali'!$B$40000=(RIGHT(B33,2)))*('[1]Lista Materiali'!$C$6:'[1]Lista Materiali'!$C$40000=(LEFT(C30,1))),0),5)","v":{"$error":"#REF!"}},null,{"$f":"INDEX('[1]Lista Materiali'!$A$6:G40018,MATCH(1,('[1]Lista Materiali'!$A$6:'[1]Lista Materiali'!$A$40000=G30)*('[1]Lista Materiali'!$B$6:'[1]Lista Materiali'!$B$40000=(RIGHT(B33,2)))*('[1]Lista Materiali'!$C$6:'[1]Lista Materiali'!$C$40000=(LEFT(C30,1))),0),6)","v":{"$error":"#REF!"}},null,null,null,{"$f":"INDEX('[1]Lista Materiali'!$A$6:G40018,MATCH(1,('[1]Lista Materiali'!$A$6:'[1]Lista Materiali'!$A$40000=G30)*('[1]Lista Materiali'!$B$6:'[1]Lista Materiali'!$B$40000=(RIGHT(B33,2)))*('[1]Lista Materiali'!$C$6:'[1]Lista Materiali'!$C$40000=(LEFT(C30,1))),0),7)","v":{"$error":"#REF!"}}]
[]
[null,{"$f":"(7*(_xlfn.SHEET()-5)+6)","v":6},"tipo materiale",null,null,null,"denominazione materiale"]
[]
[]
[null,"Classifica",null,"Cat.",null,"Gr.",null,"Sot.",null,"codice RNI",null,null,null,null,"q.tà","U.M.","voce doganale",null,null,null,null,null,null,null,"TARIC"]
[null,null,null,{"$f":"INDEX('[1]Lista Materiali'!$A$6:G40024,MATCH(1,('[1]Lista Materiali'!$A$6:'[1]Lista Materiali'!$A$40000=G36)*('[1]Lista Materiali'!$B$6:'[1]Lista Materiali'!$B$40000=(RIGHT(B39,2)))*('[1]Lista Materiali'!$C$6:'[1]Lista Materiali'!$C$40000=(LEFT(C36,1))),0),4)","v":{"$error":"#REF!"}},null,{"$f":"INDEX('[1]Lista Materiali'!$A$6:G40024,MATCH(1,('[1]Lista Materiali'!$A$6:'[1]Lista Materiali'!$A$40000=G36)*('[1]Lista Materiali'!$B$6:'[1]Lista Materiali'!$B$40000=(RIGHT(B39,2)))*('[1]Lista Materiali'!$C$6:'[1]Lista Materiali'!$C$40000=(LEFT(C36,1))),0),5)","v":{"$error":"#REF!"}},null,{"$f":"INDEX('[1]Lista Materiali'!$A$6:G40024,MATCH(1,('[1]Lista Materiali'!$A$6:'[1]Lista Materiali'!$A$40000=G36)*('[1]Lista Materiali'!$B$6:'[1]Lista Materiali'!$B$40000=(RIGHT(B39,2)))*('[1]Lista Materiali'!$C$6:'[1]Lista Materiali'!$C$40000=(LEFT(C36,1))),0),6)","v":{"$error":"#REF!"}},null,null,null,{"$f":"INDEX('[1]Lista Materiali'!$A$6:G40024,MATCH(1,('[1]Lista Materiali'!$A$6:'[1]Lista Materiali'!$A$40000=G36)*('[1]Lista Materiali'!$B$6:'[1]Lista Materiali'!$B$40000=(RIGHT(B39,2)))*('[1]Lista Materiali'!$C$6:'[1]Lista Materiali'!$C$40000=(LEFT(C36,1))),0),7)","v":{"$error":"#REF!"}}]
[]
[null,{"$f":"(7*(_xlfn.SHEET()-5)+7)","v":7},"tipo materiale",null,null,null,"denominazione materiale"]
[]
[]
[null,"Classifica",null,"Cat.",null,"Gr.",null,"Sot.",null,"codice RNI",null,null,null,null,"q.tà","U.M.","voce doganale",null,null,null,null,null,null,null,"TARIC"]
[null,null,null,{"$f":"INDEX('[1]Lista Materiali'!$A$6:G40030,MATCH(1,('[1]Lista Materiali'!$A$6:'[1]Lista Materiali'!$A$40000=G42)*('[1]Lista Materiali'!$B$6:'[1]Lista Materiali'!$B$40000=(RIGHT(B45,2)))*('[1]Lista Materiali'!$C$6:'[1]Lista Materiali'!$C$40000=(LEFT(C42,1))),0),4)","v":{"$error":"#REF!"}},null,{"$f":"INDEX('[1]Lista Materiali'!$A$6:G40030,MATCH(1,('[1]Lista Materiali'!$A$6:'[1]Lista Materiali'!$A$40000=G42)*('[1]Lista Materiali'!$B$6:'[1]Lista Materiali'!$B$40000=(RIGHT(B45,2)))*('[1]Lista Materiali'!$C$6:'[1]Lista Materiali'!$C$40000=(LEFT(C42,1))),0),5)","v":{"$error":"#REF!"}},null,{"$f":"INDEX('[1]Lista Materiali'!$A$6:G40030,MATCH(1,('[1]Lista Materiali'!$A$6:'[1]Lista Materiali'!$A$40000=G42)*('[1]Lista Materiali'!$B$6:'[1]Lista Materiali'!$B$40000=(RIGHT(B45,2)))*('[1]Lista Materiali'!$C$6:'[1]Lista Materiali'!$C$40000=(LEFT(C42,1))),0),6)","v":{"$error":"#REF!"}},null,null,null,{"$f":"INDEX('[1]Lista Materiali'!$A$6:G40030,MATCH(1,('[1]Lista Materiali'!$A$6:'[1]Lista Materiali'!$A$40000=G42)*('[1]Lista Materiali'!$B$6:'[1]Lista Materiali'!$B$40000=(RIGHT(B45,2)))*('[1]Lista Materiali'!$C$6:'[1]Lista Materiali'!$C$40000=(LEFT(C42,1))),0),7)","v":{"$error":"#REF!"}}]
[]
[null,{"$f":"IF(Foglio2!B46=\"\",\"\",Foglio2!B46)","v":""},null,null,null,null,null,null,null,null,null,null,null,null,null,{"$f":"IF(Foglio2!J46=\"\",\"\",Foglio2!J46)","v":""}]
[]
[]
[]
[null,null,null,null,null,null,null,null,null,null,null,null,null,{"$f":"IF(Foglio2!H50=\"\",\"\",Foglio2!H50)","v":""},null,{"$f":"IF(Foglio2!O46=\"\",\"\",Foglio2!O46)","v":""}]
[null,null,null,null,null,null,null,null,null,null,null,null,null,"Timbro,data e firma del legale Rappresentante"]
[]
[null,null,null,null,null,null,null,null,null,null,null,{"$f":"CONCATENATE(\"Pagina n° \",_xlfn.SHEET(),\" di pag. n°\",(_xlfn.SHEETS()-2))","v":"Pagina n° 5 di pag. n°7"}]

{"sheet":"Foglio5bis","index":5,"n_rows":54,"n_cols":26,"rows_kept":54,"cut":false,"hidden":false,"merged":[[44,9,44,13],[40,2,40,5],[40,6,40,25],[23,6,23,25],[25,1,25,2],[25,3,25,4],[25,5,25,6],[25,7,25,8],[35,1,36,1],[36,6,36,25],[23,1,24,1],[24,6,24,25],[34,6,34,25],[25,9,25,13],[25,16,25,23],[29,6,29,25],[29,1,30,1],[30,6,30,25],[37,24,37,25],[35,6,35,25],[1,19,1,20],[1,0,1,2],[1,3,1,10],[7,1,7,2],[7,16,7,23],[1,21,1,25],[6,6,6,25],[5,1,6,1],[7,3,7,4],[7,5,7,6],[7,7,7,8],[7,9,7,13],[10,2,10,5],[10,6,10,25],[16,2,16,5],[16,6,16,25],[13,1,13,2],[13,3,13,4],[13,5,13,6],[13,7,13,8],[13,9,13,13],[11,6,11,25],[14,9,14,13],[13,24,13,25],[17,1,18,1],[19,24,19,25],[42,6,42,25],[43,1,43,2],[43,3,43,4],[43,5,43,6],[17,6,17,25],[18,6,18,25],[11,1,12,1],[12,6,12,25],[19,1,19,2],[19,3,19,4],[19,5,19,6],[19,7,19,8],[19,9,19,13],[38,9,38,13],[41,6,41,25],[34,2,34,5],[19,16,19,23],[25,24,25,25],[28,2,28,5],[28,6,28,25],[22,2,22,5],[22,6,22,25],[20,9,20,13],[26,9,26,13],[32,9,32,13],[31,24,31,25],[31,1,31,2],[31,3,31,4],[31,5,31,6],[31,7,31,8],[31,9,31,13],[31,16,31,23],[50,13,50,14],[4,2,4,5],[2,1,2,25],[7,24,7,25],[4,6,4,25],[5,6,5,25],[46,1,49,7],[50,1,50,2],[50,3,50,10],[46,15,49,22],[49,13,49,14],[43,9,43,13],[37,9,37,13],[37,1,37,2],[37,3,37,4],[37,5,37,6],[37,7,37,8],[41,1,42,1],[8,9,8,13],[13,16,13,23],[43,7,43,8],[43,16,43,23],[37,16,37,23],[43,24,43,25]]}
[]
[" Protocollo",null,null,{"$f":"IF(Foglio1!E13=\"\",\"\",Foglio1!E13)","v":""},null,null,null,null,null,null,null,null,null,null,null,null,null,null,null,"Data",null,{"$f":"IF(Foglio1!I13=\"\",\"\",Foglio1!I13)","v":""}]
[null,"Materiali"]
[]
[null,{"$f":"(7*(_xlfn.SHEET()-6)+1)","v":1},"tipo materiale",null,null,null,"denominazione materiale"]
[null,null,null,{"$f":"IF(J9=0,\"\",INDEX(Legenda!B112:B115,INDEX('[1]Lista Materiali'!A6:G50000,MATCH(J9,'[1]Lista Materiali'!$G$6:G50000,0),3)))","v":""},null,null,{"$f":"IF(J9=0,\"\",INDEX('[1]Lista Materiali'!A6:G50000,MATCH(J9,'[1]Lista Materiali'!$G$6:G50000,0),1))","v":""}]
[]
[null,"Classifica",null,"Cat.",null,"Gr.",null,"Sot.",null,"codice RNI",null,null,null,null,"q.tà","U.M.","voce doganale",null,null,null,null,null,null,null,"TARIC"]
[null,null,{"$f":"IF(J9=0,\"\",VLOOKUP(INDEX('[1]Lista Materiali'!A6:G50000,MATCH(J9,'[1]Lista Materiali'!$G$6:G50000,0),2),Legenda!C117:D121,2))","v":""},null,{"$f":"IF(J9=0,\"\",INDEX('[1]Lista Materiali'!A6:G50000,MATCH(J9,'[1]Lista Materiali'!$G$6:G50000,0),4))","v":""},null,{"$f":"IF(J9=0,\"\",INDEX('[1]Lista Materiali'!A6:G50000,MATCH(J9,'[1]Lista Materiali'!$G$6:G50000,0),5))","v":""},null,{"$f":"IF(J9=0,\"\",INDEX('[1]Lista Materiali'!A6:G50000,MATCH(J9,'[1]Lista Materiali'!$G$6:G50000,0),6))","v":""},null,null,null,null,null,null,null,1,2,3,4,5,6,7,8,9,0]
[]
[null,{"$f":"(7*(_xlfn.SHEET()-6)+2)","v":2},"tipo materiale",null,null,null,"denominazione materiale"]
[null,null,null,{"$f":"IF(J15=0,\"\",INDEX(Legenda!B112:B115,INDEX('[1]Lista Materiali'!A6:G50000,MATCH(J15,'[1]Lista Materiali'!$G$6:G50000,0),3)))","v":""},null,null,{"$f":"IF(J15=0,\"\",INDEX('[1]Lista Materiali'!A6:G50000,MATCH(J15,'[1]Lista Materiali'!$G$6:G50000,0),1))","v":""}]
[]
[null,"Classifica",null,"Cat.",null,"Gr.",null,"Sot.",null,"codice RNI",null,null,null,null,"q.tà","U.M.","voce doganale",null,null,null,null,null,null,null,"TARIC"]
[null,null,{"$f":"IF(J15=0,\"\",VLOOKUP(INDEX('[1]Lista Materiali'!A6:G50000,MATCH(J15,'[1]Lista Materiali'!$G$6:G50006,0),2),Legenda!C117:D121,2))","v":""},null,{"$f":"IF(J15=0,\"\",INDEX('[1]Lista Materiali'!A6:G50000,MATCH(J15,'[1]Lista Materiali'!$G$6:G50000,0),4))","v":""},null,{"$f":"IF(J15=0,\"\",INDEX('[1]Lista Materiali'!A6:G50000,MATCH(J15,'[1]Lista Materiali'!$G$6:G50000,0),5))","v":""},null,{"$f":"IF(J15=0,\"\",INDEX('[1]Lista Materiali'!A6:G50000,MATCH(J15,'[1]Lista Materiali'!$G$6:G50000,0),6))","v":""}]
[]
[null,{"$f":"(7*(_xlfn.SHEET()-6)+3)","v":3},"tipo materiale",null,null,null,"denominazione materiale"]
[null,null,null,{"$f":"IF(J21=0,\"\",INDEX(Legenda!B112:B115,INDEX('[1]Lista Materiali'!A6:G50000,MATCH(J21,'[1]Lista Materiali'!$G$6:G50000,0),3)))","v":""},null,null,{"$f":"IF(J21=0,\"\",INDEX('[1]Lista Materiali'!A6:G50000,MATCH(J21,'[1]Lista Materiali'!$G$6:G50000,0),1))","v":""}]
[]
[null,"Classifica",null,"Cat.",null,"Gr.",null,"Sot.",null,"codice RNI",null,null,null,null,"q.tà","U.M.","voce doganale",null,null,null,null,null,null,null,"TARIC"]
[null,null,{"$f":"IF(J21=0,\"\",VLOOKUP(INDEX('[1]Lista Materiali'!A6:G50000,MATCH(J21,'[1]Lista Materiali'!$G$6:G50000,0),2),Legenda!C117:D121,2))","v":""},null,{"$f":"IF(J21=0,\"\",INDEX('[1]Lista Materiali'!A6:G50000,MATCH(J21,'[1]Lista Materiali'!$G$6:G50000,0),4))","v":""},null,{"$f":"IF(J21=0,\"\",INDEX('[1]Lista Materiali'!A6:G50000,MATCH(J21,'[1]Lista Materiali'!$G$6:G50000,0),5))","v":""},null,{"$f":"IF(J21=0,\"\",INDEX('[1]Lista Materiali'!A6:G50000,MATCH(J21,'[1]Lista Materiali'!$G$6:G50000,0),6))","v":""}]
[]
[null,{"$f":"(7*(_xlfn.SHEET()-6)+4)","v":4},"tipo materiale",null,null,null,"denominazione materiale"]
[null,null,null,{"$f":"IF(J27=0,\"\",INDEX(Legenda!B112:B115,INDEX('[1]Lista Materiali'!A6:G50000,MATCH(J27,'[1]Lista Materiali'!$G$6:G50000,0),3)))","v":""},null,null,{"$f":"IF(J27=0,\"\",INDEX('[1]Lista Materiali'!A6:G50000,MATCH(J27,'[1]Lista Materiali'!$G$6:G50000,0),1))","v":""}]
[]
[null,"Classifica",null,"Cat.",null,"Gr.",null,"Sot.",null,"codice RNI",null,null,null,null,"q.tà","U.M.","voce doganale",null,null,null,null,null,null,null,"TARIC"]
[null,null,{"$f":"IF(J27=0,\"\",VLOOKUP(INDEX('[1]Lista Materiali'!A6:G50000,MATCH(J27,'[1]Lista Materiali'!$G$6:G50000,0),2),Legenda!C117:D121,2))","v":""},null,{"$f":"IF(J27=0,\"\",INDEX('[1]Lista Materiali'!A6:G50000,MATCH(J27,'[1]Lista Materiali'!$G$6:G50000,0),4))","v":""},null,{"$f":"IF(J27=0,\"\",INDEX('[1]Lista Materiali'!A6:G50000,MATCH(J27,'[1]Lista Materiali'!$G$6:G50000,0),5))","v":""},null,{"$f":"IF(J27=0,\"\",INDEX('[1]Lista Materiali'!A6:G50000,MATCH(J27,'[1]Lista Materiali'!$G$6:G50000,0),6))","v":""}]
[]
[null,{"$f":"(7*(_xlfn.SHEET()-6)+5)","v":5},"tipo materiale",null,null,null,"denominazione materiale"]
[null,null,null,{"$f":"IF(J33=0,\"\",INDEX(Legenda!B112:B115,INDEX('[1]Lista Materiali'!A6:G50000,MATCH(J33,'[1]Lista Materiali'!$G$6:G50000,0),3)))","v":""},null,null,{"$f":"IF(J33=0,\"\",INDEX('[1]Lista Materiali'!A6:G50000,MATCH(J33,'[1]Lista Materiali'!$G$6:G50000,0),1))","v":""}]
[]
[null,"Classifica",null,"Cat.",null,"Gr.",null,"Sot.",null,"codice RNI",null,null,null,null,"q.tà","U.M.","voce doganale",null,null,null,null,null,null,null,"TARIC"]
[null,null,{"$f":"IF(J33=0,\"\",VLOOKUP(INDEX('[1]Lista Materiali'!A6:G50000,MATCH(J33,'[1]Lista Materiali'!$G$6:G50000,0),2),Legenda!C117:D121,2))","v":""},null,{"$f":"IF(J33=0,\"\",INDEX('[1]Lista Materiali'!A6:G50000,MATCH(J33,'[1]Lista Materiali'!$G$6:G50000,0),4))","v":""},null,{"$f":"IF(J33=0,\"\",INDEX('[1]Lista Materiali'!A6:G50000,MATCH(J33,'[1]Lista Materiali'!$G$6:G50000,0),5))","v":""},null,{"$f":"IF(J33=0,\"\",INDEX('[1]Lista Materiali'!A6:G50000,MATCH(J33,'[1]Lista Materiali'!$G$6:G50000,0),6))","v":""}]
[]
[null,{"$f":"(7*(_xlfn.SHEET()-6)+6)","v":6},"tipo materiale",null,null,null,"denominazione materiale"]
[null,null,null,{"$f":"IF(J39=0,\"\",INDEX(Legenda!B112:B115,INDEX('[1]Lista Materiali'!A6:G50000,MATCH(J39,'[1]Lista Materiali'!$G$6:G50000,0),3)))","v":""},null,null,{"$f":"IF(J39=0,\"\",INDEX('[1]Lista Materiali'!A6:G50000,MATCH(J39,'[1]Lista Materiali'!$G$6:G50000,0),1))","v":""}]
[]
[null,"Classifica",null,"Cat.",null,"Gr.",null,"Sot.",null,"codice RNI",null,null,null,null,"q.tà","U.M.","voce doganale",null,null,null,null,null,null,null,"TARIC"]
[null,null,{"$f":"IF(J39=0,\"\",VLOOKUP(INDEX('[1]Lista Materiali'!A6:G50000,MATCH(J39,'[1]Lista Materiali'!$G$6:G50000,0),2),Legenda!C117:D121,2))","v":""},null,{"$f":"IF(J39=0,\"\",INDEX('[1]Lista Materiali'!A6:G50000,MATCH(J39,'[1]Lista Materiali'!$G$6:G50000,0),4))","v":""},null,{"$f":"IF(J39=0,\"\",INDEX('[1]Lista Materiali'!A6:G50000,MATCH(J39,'[1]Lista Materiali'!$G$6:G50000,0),5))","v":""},null,{"$f":"IF(J39=0,\"\",INDEX('[1]Lista Materiali'!A66:G50000,MATCH(J39,'[1]Lista Materiali'!$G$6:G50000,0),6))","v":""}]
[]
[null,{"$f":"(7*(_xlfn.SHEET()-6)+7)","v":7},"tipo materiale",null,null,null,"denominazione materiale"]
[null,null,null,{"$f":"IF(J45=0,\"\",INDEX(Legenda!B112:B115,INDEX('[1]Lista Materiali'!A6:G50000,MATCH(J45,'[1]Lista Materiali'!$G$6:G50000,0),3)))","v":""},null,null,{"$f":"IF(J45=0,\"\",INDEX('[1]Lista Materiali'!A6:G50000,MATCH(J45,'[1]Lista Materiali'!$G$6:G50000,0),1))","v":""}]
[]
[null,"Classifica",null,"Cat.",null,"Gr.",null,"Sot.",null,"codice RNI",null,null,null,null,"q.tà","U.M.","voce doganale",null,null,null,null,null,null,null,"TARIC"]
[null,null,{"$f":"IF(J45=0,\"\",VLOOKUP(INDEX('[1]Lista Materiali'!A6:G50000,MATCH(J45,'[1]Lista Materiali'!$G$6:G50000,0),2),Legenda!C117:D121,2))","v":""},null,{"$f":"IF(J45=0,\"\",INDEX('[1]Lista Materiali'!A6:G50000,MATCH(J45,'[1]Lista Materiali'!$G$6:G50000,0),4))","v":""},null,{"$f":"IF(J45=0,\"\",INDEX('[1]Lista Materiali'!A6:G50000,MATCH(J45,'[1]Lista Materiali'!$G$6:G50000,0),5))","v":""},null,{"$f":"IF(J45=0,\"\",INDEX('[1]Lista Materiali'!A6:G50000,MATCH(J45,'[1]Lista Materiali'!$G$6:G50000,0),6))","v":""}]
[]
[null,{"$f":"IF(Foglio2!B46=\"\",\"\",Foglio2!B46)","v":""},null,null,null,null,null,null,null,null,null,null,null,null,null,{"$f":"IF(Foglio2!J46=\"\",\"\",Foglio2!J46)","v":""}]
[]
[]
[]
[null,null,null,null,null,null,null,null,null,null,null,null,null,{"$f":"IF(Foglio2!H50=\"\",\"\",Foglio2!H50)","v":""},null,{"$f":"IF(Foglio2!O46=\"\",\"\",Foglio2!O46)","v":""}]
[null,null,null,null,null,null,null,null,null,null,null,null,null,"Timbro,data e firma del legale Rappresentante"]
[]
[null,null,null,null,null,null,null,null,null,null,null,{"$f":"CONCATENATE(\"Pagina n° \",_xlfn.SHEET()-1,\" di pag. n°\",(_xlfn.SHEETS()-2))","v":"Pagina n° 5 di pag. n°7"}]

{"sheet":"Foglio6","index":6,"n_rows":52,"n_cols":21,"rows_kept":52,"cut":false,"hidden":false,"merged":[[45,11,48,19],[1,0,1,2],[1,3,1,6],[26,2,26,5],[6,6,6,8],[13,2,13,3],[1,7,1,10],[3,0,3,20],[4,0,4,20],[1,18,1,20],[1,21,1,23],[49,0,49,2],[49,3,49,5],[28,12,28,13],[30,0,30,6],[31,0,43,20],[20,2,20,8],[22,2,22,8],[24,2,24,9],[20,18,20,22],[14,20,14,22],[16,20,16,22],[18,2,18,8],[49,7,49,10],[29,12,29,13],[45,1,48,4]]}
[]
[" Protocollo",null,null,{"$f":"IF(Foglio1!E13=\"\",\"\",Foglio1!E13)","v":""},null,null,null,null,null,null,null,null,null,null,null,null,"Data"]
[]
["ELEMENTI GENERALI CONCERNENTI L'OPERAZIONE CHE SI INTENDE EFFETTUARE"]
["Allegato 2"]
[]
["Impresa Italiana in qualità di:"]
[]
["Informazioni relative al contratto/ordine"]
[null,"Ammontare del presunto contratto:"]
[]
["con regolamento finanziario",null,null,null,null,null,"ai soli fini doganali (sfd)",null,null,null,null,null,null,null,"Solo per l' intermediazione"]
[]
["Importo",null,null,null,null,null,"Importo"]
["Valuta",null,null,null,null,null,"Valuta",null,null,null,null,null,null,null,"Importo di acquisto",null,null,null,null,null,"Valuta"]
[]
["Elementi supplementari",null,null,null,null,null,null,null,null,null,null,null,null,null,"Importo di vendita",null,null,null,null,null,"Valuta"]
[]
[null,null,"Materiale in corso di iscrizione al SERNI",null,null,null,null,null,null,null,null,"Presenza di materiale CLASSIFICATO"]
[]
[null,null,"Royalties a favore dell'A.D.",null,null,null,null,null,null,null,null,"Presenza di Off Set",null,null,null,null,null,null,"Presenza di IFF"]
[]
[null,null,"Destinatari di compensi di intermediazione"]
[]
[null,null,"Partecipazione Bando di gara - Data scadenza"]
[]
[null,null,"Proprietà intellettuale"]
[]
[null,null,"E' prevista notifica per Golden Power?"]
[null,null,null,null,null,null,null,null,null,"NO",null,null,"SI",null,null,null,null,"già fatta",null,null,"da fare"]
["Descrizione sintetica dell'operazione"]
[]
[]
[]
[]
[]
[]
[]
[]
[]
[]
[]
[]
[]
[]
[null,{"$f":"IF(Foglio2!B46=\"\",\"\",Foglio2!B46)","v":""},null,null,null,null,null,null,null,null,null,{"$f":"IF(Foglio2!J46=\"\",\"\",Foglio2!J46)","v":""}]
[]
[]
[]
[null,null,null,null,null,null,null,{"$f":"IF(Foglio2!H50=\"\",\"\",Foglio2!H50)","v":""},{"$f":"IF(Foglio2!I52=\"\",\"\",Foglio2!I52)","v":""},{"$f":"IF(Foglio2!C57=\"\",\"\",Foglio2!C57)","v":""},{"$f":"IF(Foglio2!K52=\"\",\"\",Foglio2!K52)","v":""}]
[null,null,null,null,null,null,null,"Timbro,data e firma del legale Rappresentante"]
[null,null,null,null,null,null,null,{"$f":"CONCATENATE(\"Pagina n° \",_xlfn.SHEET()-1,\" di pag. n°\",(_xlfn.SHEETS()-2))","v":"Pagina n° 6 di pag. n°7"}]

{"sheet":"Foglio7","index":7,"n_rows":53,"n_cols":19,"rows_kept":53,"cut":false,"hidden":false,"merged":[[1,1,1,3],[1,16,1,18],[8,1,8,7],[10,1,10,7],[28,1,28,10],[5,1,5,17],[18,9,18,19],[25,9,25,19],[11,7,14,19],[21,11,21,12],[1,13,1,15],[21,16,21,18],[22,7,23,7],[22,9,23,9],[22,6,23,6],[22,8,23,8],[22,1,23,5],[22,10,23,11],[22,12,22,16],[49,1,49,3],[49,4,49,5],[29,9,29,19],[32,1,41,18],[45,1,48,5],[45,9,47,17],[22,17,23,17],[22,18,23,18]]}
[]
[null," Protocollo",null,null,{"$f":"IF(Foglio1!E13=\"\",\"\",Foglio1!E13)","v":""},null,null,null,null,null,null,null,null,"data",null,null,{"$f":"IF(Foglio1!I13=\"\",\"\",Foglio1!I13)","v":""}]
[]
[]
[]
[null,"Elementi aggiuntivi, chiarificatori in merito agli aspetti della trattativa"]
[]
["   Descrizione dell'operazione richiesta"]
[null,"- Descrizione della tipologia del materiale"]
[]
[null,"- Soggetti e ruolo che rivestono nell'operazione"]
[]
[]
[]
[]
[null,"- Indicazione sull'utilizzo finale"]
[]
[null,"- Indicazioni su eventuali trattaive collegate e/o alternative"]
[]
["   Precisare se:"]
[null,"- l'eventuale tramite commerciale verrà a conoscenza di informazioni classificate",null,null,null,null,null,null,null,null,null,null,null,null,"SI",null,null,"NO"]
[null,"- l'operazione avviene nell'ambito di un programma intergovernativo",null,null,null,null,null,null,null,null,null,"SI",null,null,"NO"]
[null,"· Background (di proprietà nazionale)",null,null,null,null,null,"SI",null,"NO","· Foreground",null,"(di proprietà dei Paesi",null,null,null,null,"SI","NO"]
[null,null,null,null,null,null,null,null,null,null,null,null,"partecipanti al Programma)"]
[null,"- è prevista cessione di tecnologia",null,null,null,null,null,"SI",null,"NO"]
[]
["   Per le INTERMEDIAZIONI, riguardo al materiale, specificare se:"]
[null,"- La proprietà intellettuale è italiana",null,null,null,null,null,"SI",null,"NO"]
[null,"- è presente materiale/componentistica classificato italiano",null,null,null,null,null,null,null,null,null,"SI",null,null,"NO"]
[]
[null,"Per le VARIAZIONI / PRECISAZIONI indicare cosa cambia della richiesta originaria"]
[]
[]
[]
[]
[]
[]
[]
[]
[]
[]
[]
[]
[]
[]
[null,{"$f":"IF(Foglio2!B46=\"\",\"\",Foglio2!B46)","v":""},null,null,null,null,null,null,null,{"$f":"Foglio2!J46","v":0}]
[]
[]
[]
[null,null,null,null,null,null,null,null,null,{"$f":"IF(Foglio2!H50=\"\",\"\",Foglio2!H50)","v":""}]
[null,null,null,null,null,null,null,null,null,"Timbro,data e firma del legale Rappresentante"]
[]
[null,null,null,null,null,null,null,null,{"$f":"CONCATENATE(\"Pagina n° \",_xlfn.SHEET()-1,\" di pag. n°\",(_xlfn.SHEETS()-2))","v":"Pagina n° 7 di pag. n°7"}]

{"sheet":"Legenda","index":8,"n_rows":204,"n_cols":10,"rows_kept":204,"cut":false,"hidden":false,"merged":[[80,0,99,0],[94,4,94,5],[85,2,85,3],[86,2,86,3],[95,4,95,5],[89,4,89,5],[90,4,90,5],[91,4,91,5],[92,4,92,5],[93,4,93,5],[86,4,86,5],[87,4,87,5],[88,4,88,5],[109,1,109,4],[81,4,81,5],[85,4,85,5],[2,1,2,14],[82,4,82,5],[83,4,83,5],[84,4,84,5],[82,2,82,3],[83,2,83,3],[84,2,84,3],[78,3,78,5],[96,4,96,5],[97,4,97,5],[98,4,98,5]]}
[]
[]
[null,"LEGENDA"]
[]
[]
[null,"Legge 185/90 e succ. mod. - Comunicazione di inizio Trattative Contrattuali - 9.2"]
[null,"Legge 185/90 e succ. mod. - Comunicazione di inizio Trattative Contrattuali - 9.4"]
[null,"Legge 185/90 e succ. mod. - Comunicazione di inizio Trattative Contrattuali - 9.5"]
[null,"Legge 185/90 e succ. mod. - Comunicazione di inizio Trattative Contrattuali - 2.6"]
[null,"Legge 185/90 e succ. mod. - Comunicazione di inizio Trattative Contrattuali - Intermediazione"]
[null,"Legge 185/90 e succ. mod. - Richiesta di Variazione Trattative Contrattuali"]
[null,"Legge 185/90 e succ. mod. - Precisazione relativa a Trattativa Contrattuale"]
[null,"Legge 185/90 e succ. mod. - Richiesta di Rinnovo Trattativa Contrattuale"]
[null,"Legge 185/90 e succ. mod. - Richiesta di Autorizzazione alla cessione di informazioni e materiale classificati (Deroga DIS ambito Unione Europea)"]
[]
[]
[]
[null,"9 comma 2",null,null,"EUR",null,null,"AF","AFGANISTAN","AF"]
[null,"9 comma 4",null,null,"GBP",null,null,"AL","ALBANIA","AL"]
[null,null,null,null,"USD",null,null,"DZ","ALGERIA","DZ"]
[null,null,null,null,"AUD",null,null,"AD","ANDORRA","AD"]
[null,null,null,null,"CAD",null,null,"AO","ANGOLA","AO"]
[null,"ESPORTAZIONE",null,null,"TWD",null,null,"AG","ANTIGUA E BARBUDA","AG"]
[null,"IMPORTAZIONE",null,null,"SGD",null,null,"AN","ANTILLE OLANDESI","AN"]
[null,null,null,null,"SEK",null,null,"SA","ARABIA SAUDITA","SA"]
[null,null,null,null,"THB",null,null,"AR","ARGENTINA","AR"]
[null,"DEFINITIVA",null,null,"JPY",null,null,"AM","ARMENIA","AM"]
[null,"TEMPORANEA",null,null,"KRW",null,null,"AU","AUSTRALIA","AU"]
[null,"TEMPORANEA CON SUCCESSIVA RIESP. DEFIN.",null,null,"AED",null,null,"AT","AUSTRIA","AT"]
[null,"TEMPORANEA CON SUCCESSIVA REIMP. DEFIN.",null,null,"SAR",null,null,"AZ","AZERBAIJAN","AZ"]
[null,"PRESTAZIONE DI SERVIZIO",null,null,"PLN",null,null,"BS","BAHAMA","BS"]
[null,null,null,null,"RON",null,null,"BH","BAHREIN","BH"]
[null,null,null,null,"CHF",null,null,"BD","BANGLADESH","BD"]
[null,"PRODUTTORE",null,null,"NOK",null,null,"BB","BARBADOS","BB"]
[null,"ACQUIRENTE",null,null,"DKK",null,null,"BE","BELGIO","BE"]
[null,"FORNITORE",null,null,"HUF",null,null,"BZ","BELIZE","BZ"]
[null,"ALTRO (specificare)",null,null,"TRY",null,null,"BJ","BENIN","BJ"]
[null,null,null,null,"INR",null,null,"BT","BHUTAN","BT"]
[null,null,null,null,"KWD",null,null,"BY","BIELORUSSIA","BY"]
[null,"1 - Materiali",null,null,"MYR",null,null,"BO","BOLIVIA","BO"]
[null,"2 - Tecnologia - know how",null,null,"NZD",null,null,"BA","BOSNIA-ERZEGOVINA","BA"]
[null,"3 - Servizi",null,null,"OMR",null,null,"BW","BOTSWANA","BW"]
[null,"4 - Ricambi",null,null,"PHP",null,null,"BR","BRASILE","BR"]
[null,null,null,null,"ZAR",null,null,"BN","BRUNEI","BN"]
[null,null,null,null,null,null,null,"BG","BULGARIA","BG"]
[null,"NUMERO",null,null,null,null,null,"BF","BURKINA FASO","BF"]
[null,"LITRI",null,null,null,null,null,"BI","BURUNDI","BI"]
[null,"MESI",null,null,null,null,null,"KH","CAMBOGIA","KH"]
[null,"COLLI",null,null,null,null,null,"CM","CAMERUN","CM"]
[null,"ORE",null,null,null,null,null,"CA","CANADA","CA"]
[null,"SERIE",null,null,null,null,null,"TD","CIAD","TD"]
[null,"KIT",null,null,null,null,null,"CL","CILE","CL"]
[null,"GIORNI",null,null,null,null,null,"CN","CINA","CN"]
[null,"IMPIAN",null,null,null,null,null,"CY","CIPRO","CY"]
[null,"KG",null,null,null,null,null,"VA","CITTA' DEL VATICANO","VA"]
[null,"LOTTO",null,null,null,null,null,"CO","COLOMBIA","CO"]
[null,"MQ",null,null,null,null,null,"CG","CONGO","CG"]
[null,"CO.AP.",null,null,null,null,null,"CD","CONGO (REP. DEM. EX ZAIRE)","CD"]
[null,"INQUAN",null,null,null,null,null,"KP","COREA DEL NORD","KP"]
[null,"SET",null,null,null,null,null,"KR","COREA DEL SUD","KR"]
[null,"TONN.",null,null,null,null,null,"CI","COSTA D'AVORIO","CI"]
[null,"STUDIO",null,null,null,null,null,"CR","COSTARICA","CR"]
[null,"VOLUME",null,null,null,null,null,"HR","CROAZIA","HR"]
[null,"SETTIMANE",null,null,null,null,null,"CU","CUBA","CU"]
[null,"METRI",null,null,null,null,null,"DK","DANIMARCA","DK"]
[null,"AD VALOREM",null,null,null,null,null,"EC","ECUADOR","EC"]
[null,"ANNI",null,null,null,null,null,"EG","EGITTO","EG"]
[null,null,null,null,null,null,null,"SV","EL SALVADOR","SV"]
[null,null,null,null,null,null,null,"AE","EMIRATI ARABI UNITI","AE"]
[null,"1 -  Non Classificato             NC",null,null,null,null,null,"ER","ERITREA","ER"]
[null,"2 -  RISERVATO                      RI",null,null,null,null,null,"EE","ESTONIA","EE"]
[null,"3 -  RISERVATISSIMO           RR",null,null,null,null,null,"ET","ETIOPIA","ET"]
[null,"4 -  SEGRETO                         SE",null,null,null,null,null,"PH","FILIPPINE","PH"]
[null,"5 -  SEGRETISSIMO               SS",null,null,null,null,null,"FI","FINLANDIA","FI"]
[null,null,null,null,null,null,null,"FR","FRANCIA","FR"]
[null,"Valore art. legge sel.",3,null,null,null,null,"GA","GABON","GA"]
[null,null,null,null,null,null,null,"GM","GAMBIA","GM"]
[null,null,null,null,null,null,null,"GE","GEORGIA","GE"]
[null,null,null,null,null,null,null,"DE","GERMANIA","DE"]
[null,null,null,null,null,null,null,"GH","GHANA","GH"]
["Pulsanti di cancellazione e di copia utilizzati dalle macro",null,null,null,null,null,null,"JM","GIAMAICA","JM"]
[null,null,null,null,"contraente",null,null,"JP","GIAPPONE","JP"]
[null,null,false,null,false,null,null,"DJ","GIBUTI","DJ"]
[null,null,false,null,false,null,null,"JO","GIORDANIA","JO"]
[null,null,false,null,false,null,null,"GR","GRECIA","GR"]
[null,null,false,null,"destinatario",null,null,"GD","GRENADA","GD"]
[null,null,false,null,false,null,null,"GT","GUATEMALA","GT"]
[null,null,null,null,false,null,null,"GN","GUINEA (CAPITALE CONAKRY)","GN"]
[null,null,null,null,false,null,null,"GW","GUINEA BISSAU","GW"]
[null,null,null,null,"tramite",null,null,"GQ","GUINEA EQUATORIALE","GQ"]
[null,null,null,null,false,null,null,"GY","GUYANA","GY"]
[null,null,null,null,false,null,null,"HT","HAITI","HT"]
[null,"Macro 12 cancella committente",null,null,false,null,null,"HN","HONDURAS","HN"]
[null,"Macro 13 cancella destinatario",null,null,false,null,null,"HK","HONG KONG","HK"]
[null,"Macro 14 copia committente in destinatario",null,null,false,null,null,"IN","INDIA","IN"]
[null,"Macro 15 cancella dati tramite",null,null,"utilizzatore finale",null,null,"ID","INDONESIA","ID"]
[null,"Macro 16 cancella dati util finale",null,null,false,null,null,"IR","IRAN","IR"]
[null,"Macro 17 copia destinatario in  util finale",null,null,false,null,null,"IQ","IRAQ","IQ"]
[null,null,null,null,false,null,null,"IE","IRLANDA","IE"]
[null,null,null,null,null,null,null,"IS","ISLANDA","IS"]
[null,null,null,null,null,null,null,"IL","ISRAELE","IL"]
[null,null,null,null,null,null,null,"IT","ITALIA","IT"]
[null,null,null,null,null,null,null,"KZ","KAZAKISTAN","KZ"]
[null,null,null,null,null,null,null,"KE","KENYA","KE"]
[null,null,null,null,null,null,null,"KG","KIRGHIZISTAN","KG"]
[null,null,null,null,null,null,null,"XK","KOSOVO","XK"]
[null,null,null,null,null,null,null,"KW","KUWAIT","KW"]
[null,null,null,null,null,null,null,"LA","LAOS","LA"]
[null,null,null,null,null,null,null,"LS","LESOTHO","LS"]
[null,"Della cartella Foglio 5 bis",null,null,null,null,null,"LV","LETTONIA","LV"]
[null,null,null,null,null,null,null,"LB","LIBANO","LB"]
[null,"1 - Materiali",null,null,null,null,null,"LR","LIBERIA","LR"]
[null,"2 - Tecnologia - know how",null,null,null,null,null,"LY","LIBIA","LY"]
[null,"3 - Servizi",null,null,null,null,null,"LI","LIECHTENSTEIN","LI"]
[null,"4 - Ricambi",null,null,null,null,null,"LT","LITUANIA","LT"]
[null,null,null,null,null,null,null,"LU","LUSSEMBURGO","LU"]
[null,null,"NC","1 - Non Classificato",null,null,null,"MK","MACEDONIA (REP. EX JUGOSLAVIA)","MK"]
[null,null,"RI","2 - RISERVATO",null,null,null,"MG","MADAGASCAR","MG"]
[null,null,"RR","3 - RISERVATISSIMO",null,null,null,"MW","MALAWI","MW"]
[null,null,"SE","4 - SEGRETO",null,null,null,"MY","MALAYSIA","MY"]
[null,null,"SS","5 - SEGRETISSIMO",null,null,null,"MV","MALDIVE","MV"]
[null,null,null,null,null,null,null,"ML","MALI","ML"]
[null,null,null,null,null,null,null,"MT","MALTA","MT"]
[null,null,null,null,null,null,null,"MA","MAROCCO","MA"]
[null,null,null,null,null,null,null,"MR","MAURITANIA","MR"]
[null,"Programmi Intergovernativi (foglio 7)",null,null,null,null,null,"MU","MAURITIUS","MU"]
[null,null,null,null,null,null,null,"MX","MESSICO","MX"]
[null,"ATHENA FIDUS",null,null,null,null,null,"MD","MOLDAVIA","MD"]
[null,"E-MALE RPAS",null,null,null,null,null,"MN","MONGOLIA","MN"]
[null,"EFA",null,null,null,null,null,"MZ","MOZAMBICO","MZ"]
[null,"EH 101",null,null,null,null,null,"MM","MYANMAR (EX BIRMANIA)","MM"]
[null,"ESSOR",null,null,null,null,null,"NA","NAMIBIA","NA"]
[null,"F-DUGS MCO",null,null,null,null,null,"NP","NEPAL","NP"]
[null,"REMM",null,null,null,null,null,"NI","NICARAGUA","NI"]
[null,"FSAF-PAAMS",null,null,null,null,null,"NE","NIGER","NE"]
[null,"IRIS-T",null,null,null,null,null,"NG","NIGERIA","NG"]
[null,"JSF",null,null,null,null,null,"NO","NORVEGIA","NO"]
[null,"MEADS",null,null,null,null,null,"NC","NUOVA CALEDONIA","NC"]
[null,"METEOR",null,null,null,null,null,"NZ","NUOVA ZELANDA","NZ"]
[null,"MIDS",null,null,null,null,null,"OM","OMAN","OM"]
[null,"MLRS-IMPROVED",null,null,null,null,null,"NL","PAESI BASSI","NL"]
[null,"MU-90",null,null,null,null,null,"PK","PAKISTAN","PK"]
[null,"NAEW&C",null,null,null,null,null,"PS","PALESTINA","PS"]
[null,"NATO-ACCS",null,null,null,null,null,"PA","PANAMA","PA"]
[null,"NH-90",null,null,null,null,null,"PG","PAPUA NUOVA GUINEA - PAPUASIA","PG"]
[null,"NILE",null,null,null,null,null,"PY","PARAGUAY","PY"]
[null,"NSP2K",null,null,null,null,null,"PE","PERU'","PE"]
[null,"ORIZZONTE",null,null,null,null,null,"PL","POLONIA","PL"]
[null,"P-DUGS",null,null,null,null,null,"PT","PORTOGALLO","PT"]
[null,"SICRAL-2",null,null,null,null,null,"MC","PRINCIPATO DI MONACO","MC"]
[null,"STAND-OFF",null,null,null,null,null,"QA","QATAR","QA"]
[null,"VULCANO",null,null,null,null,null,"GB","REGNO UNITO","GB"]
[null,"U 212 A",null,null,null,null,null,"CZ","REPUBBLICA CECA","CZ"]
[null,null,null,null,null,null,null,"CF","REPUBBLICA CENTRAFICANA","CF"]
[null,null,null,null,null,null,null,"ME","REPUBBLICA DEL MONTENEGRO","ME"]
[null,null,null,null,null,null,null,"XS","REPUBBLICA DI SERBIA","XS"]
[null,null,null,null,null,null,null,"DO","REPUBBLICA DOMINICANA","DO"]
[null,null,null,null,null,null,null,"RO","ROMANIA","RO"]
[null,null,null,null,null,null,null,"RU","RUSSIA","RU"]
[null,null,null,null,null,null,null,"RW","RWANDA","RW"]
[null,null,null,null,null,null,null,"LC","SAINT LUCIA","LC"]
[null,null,null,null,null,null,null,"VC","SAINT VINCENT E GRANADINE","VC"]
[null,null,null,null,null,null,null,"WS","SAMOA","WS"]
[null,null,null,null,null,null,null,"AS","SAMOA AMERICANE","AS"]
[null,null,null,null,null,null,null,"SM","SAN MARINO (REPUBBLICA DI)","SM"]
[null,null,null,null,null,null,null,"SN","SENEGAL","SN"]
[null,null,null,null,null,null,null,"SC","SEYCHELLES","SC"]
[null,null,null,null,null,null,null,"SL","SIERRA LEONE","SL"]
[null,null,null,null,null,null,null,"SG","SINGAPORE","SG"]
[null,null,null,null,null,null,null,"SY","SIRIA","SY"]
[null,null,null,null,null,null,null,"SK","SLOVACCHIA","SK"]
[null,null,null,null,null,null,null,"SI","SLOVENIA","SI"]
[null,null,null,null,null,null,null,"SO","SOMALIA","SO"]
[null,null,null,null,null,null,null,"ES","SPAGNA","ES"]
[null,null,null,null,null,null,null,"LK","SRI LANKA","LK"]
[null,null,null,null,null,null,null,"US","STATI UNITI D'AMERICA","US"]
[null,null,null,null,null,null,null,"ZA","SU AFRICA","ZA"]
[null,null,null,null,null,null,null,"SD","SUDAN","SD"]
[null,null,null,null,null,null,null,"SS","SUDAN del SUD","SS"]
[null,null,null,null,null,null,null,"SR","SURINAME","SR"]
[null,null,null,null,null,null,null,"SE","SVEZIA","SE"]
[null,null,null,null,null,null,null,"CH","SVIZZERA","CH"]
[null,null,null,null,null,null,null,"SZ","SWAZILAND","SZ"]
[null,null,null,null,null,null,null,"TI","TAGIKISTAN","TI"]
[null,null,null,null,null,null,null,"TW","TAIWAN","TW"]
[null,null,null,null,null,null,null,"TZ","TANZANIA","TZ"]
[null,null,null,null,null,null,null,"TH","THAILANDIA","TH"]
[null,null,null,null,null,null,null,"TP","TIMOR EST","TP"]
[null,null,null,null,null,null,null,"TG","TOGO","TG"]
[null,null,null,null,null,null,null,"TO","TONGA","TO"]
[null,null,null,null,null,null,null,"TT","TRINIDAD E TOBAGO","TT"]
[null,null,null,null,null,null,null,"TN","TUNISIA","TN"]
[null,null,null,null,null,null,null,"TR","TURCHIA","TR"]
[null,null,null,null,null,null,null,"TM","TURKMENISTAN","TM"]
[null,null,null,null,null,null,null,"UA","UCRAINA","UA"]
[null,null,null,null,null,null,null,"UG","UGANDA","UG"]
[null,null,null,null,null,null,null,"HU","UNGHERIA","HU"]
[null,null,null,null,null,null,null,"UY","URUGUAY","UY"]
[null,null,null,null,null,null,null,"UZ","UZBEKISTAN","UZ"]
[null,null,null,null,null,null,null,"VE","VENEZUELA","VE"]
[null,null,null,null,null,null,null,"VN","VIETNAM","VN"]
[null,null,null,null,null,null,null,"YE","YEMEN","YE"]
[null,null,null,null,null,null,null,"ZM","ZAMBIA","ZM"]
[null,null,null,null,null,null,null,"ZW","ZIMBABWE","ZW"]